[Event "Titled Tuesday Blitz April 11 Late 2023"]
[White "Torrente, Alejandro Josue"]
[Black "Sarkar, Justin"]
[WhiteFideId "4437969"]
[BlackFideId "2010011"]
[WhiteElo "2025"]
[BlackElo "2189"]
[Result "0-1"]
[Round "07"]
[TimeControl "180+2"]
[Date "2023.04.11"]
[WhiteClock "0:00:45"]
[BlackClock "0:00:02"]

1. e4 {[%clk 0:03:00]}  e5 {[%clk 0:02:51]} 2. Nf3 {[%clk 0:03:01]}  Nc6 {[%clk 0:02:51]} 3. Bc4 {[%clk 0:03:01]}  Nf6 {[%clk 0:02:45]} 4. d3 {[%clk 0:03:02]}  Bc5 {[%clk 0:02:31]} 5. c3 {[%clk 0:03:01]}  d6 {[%clk 0:02:28]} 6. Bb3 {[%clk 0:03:01]}  a6 {[%clk 0:02:26]} 7. Nbd2 {[%clk 0:03:01]}  Ba7 {[%clk 0:02:24]} 8. Nf1 {[%clk 0:03:01]}  O-O {[%clk 0:02:20]} 9. Ng3 {[%clk 0:03:01]}  Be6 {[%clk 0:02:16]} 10. Bc2 {[%clk 0:02:57]}  d5 {[%clk 0:02:09]} 11. Qe2 {[%clk 0:02:54]}  d4 {[%clk 0:02:03]} 12. O-O {[%clk 0:02:53]}  h6 {[%clk 0:01:36]} 13. Nh4 {[%clk 0:02:51]}  Kh7 {[%clk 0:01:31]} 14. Nhf5 {[%clk 0:02:50]}  Ng8 {[%clk 0:01:20]} 15. Qf3 {[%clk 0:02:31]}  g6 {[%clk 0:01:07]} 16. h4 {[%clk 0:02:19]}  gxf5 {[%clk 0:00:59]} 17. exf5 {[%clk 0:02:20]}  Bd5 {[%clk 0:00:59]} 18. Qh5 {[%clk 0:02:18]}  Qf6 {[%clk 0:00:49]} 19. c4 {[%clk 0:02:16]}  Nb4 {[%clk 0:00:42]} 20. cxd5 {[%clk 0:02:06]}  Nxc2 {[%clk 0:00:40]} 21. Ne4 {[%clk 0:02:06]}  Qg7 {[%clk 0:00:35]} 22. f6 {[%clk 0:01:39]}  Qg6 {[%clk 0:00:29]} 23. Qxe5 {[%clk 0:01:33]}  Nxa1 {[%clk 0:00:24]} 24. h5 {[%clk 0:01:33]}  Qg4 {[%clk 0:00:21]} 25. f3 {[%clk 0:01:29]}  Qd7 {[%clk 0:00:18]} 26. Ng5+ {[%clk 0:01:27]}  Kh8 {[%clk 0:00:11]} 27. Qe4 {[%clk 0:01:08]}  Nxf6 {[%clk 0:00:10]} 28. Qe5 {[%clk 0:01:06]}  Qd6 {[%clk 0:00:10]} 29. Qf5 {[%clk 0:01:05]}  hxg5 {[%clk 0:00:10]} 30. Bxg5 {[%clk 0:01:05]}  Nh7 {[%clk 0:00:10]} 31. Bf4 {[%clk 0:01:05]}  Qe7 {[%clk 0:00:08]} 32. h6 {[%clk 0:01:01]}  f6 {[%clk 0:00:08]} 33. Rxa1 {[%clk 0:00:57]}  Rae8 {[%clk 0:00:08]} 34. Qg6 {[%clk 0:00:58]}  Qf7 {[%clk 0:00:07]} 35. Qf5 {[%clk 0:00:57]}  Rg8 {[%clk 0:00:08]} 36. Rc1 {[%clk 0:00:55]}  Qg6 {[%clk 0:00:07]} 37. Qh3 {[%clk 0:00:55]}  Re2 {[%clk 0:00:06]} 38. g4 {[%clk 0:00:54]}  f5 {[%clk 0:00:04]} 39. g5 {[%clk 0:00:54]}  Re7 {[%clk 0:00:02]} 40. Kh1 {[%clk 0:00:50]}  Nxg5 {[%clk 0:00:02]} 41. Qh2 {[%clk 0:00:50]}  Nxf3 {[%clk 0:00:01]} 42. Qf2 {[%clk 0:00:49]}  Qh5+ {[%clk 0:00:01]} 43. Bh2 {[%clk 0:00:48]}  Nxh2 {[%clk 0:00:02]} 44. Qxh2 {[%clk 0:00:45]}  Qf3+ {[%clk 0:00:01]} 45. Qg2 {[%clk 0:00:45]}  Qxg2# {[%clk 0:00:02]} 0-1


[Site "https://www.chess.com"]

[Event "Titled Tuesday Blitz April 11 Late 2023"]
[White "Carrasco Miranda, Andres"]
[Black "Sariego Figueredo, Wilfredo"]
[WhiteFideId "3405990"]
[BlackFideId "3500080"]
[WhiteElo "2183"]
[BlackElo "2309"]
[Result "1-0"]
[Round "07"]
[TimeControl "180+2"]
[Date "2023.04.11"]
[WhiteClock "0:00:49"]
[BlackClock "0:00:08"]

1. d4 {[%clk 0:02:45]}  d5 {[%clk 0:02:50]} 2. c4 {[%clk 0:02:40]}  c6 {[%clk 0:02:49]} 3. Nf3 {[%clk 0:02:39]}  Nf6 {[%clk 0:02:49]} 4. Qb3 {[%clk 0:02:38]}  dxc4 {[%clk 0:02:44]} 5. Qxc4 {[%clk 0:02:37]}  e6 {[%clk 0:02:42]} 6. Bg5 {[%clk 0:02:36]}  Be7 {[%clk 0:02:35]} 7. Nc3 {[%clk 0:02:35]}  O-O {[%clk 0:02:34]} 8. e3 {[%clk 0:02:31]}  Nd5 {[%clk 0:02:28]} 9. h4 {[%clk 0:02:25]}  h6 {[%clk 0:02:25]} 10. Bxe7 {[%clk 0:02:23]}  Qxe7 {[%clk 0:02:26]} 11. g4 {[%clk 0:02:23]}  Nd7 {[%clk 0:02:14]} 12. g5 {[%clk 0:02:21]}  h5 {[%clk 0:02:12]} 13. e4 {[%clk 0:02:07]}  Nf4 {[%clk 0:02:04]} 14. e5 {[%clk 0:02:02]}  Nb6 {[%clk 0:02:01]} 15. Qb3 {[%clk 0:02:00]}  Bd7 {[%clk 0:01:46]} 16. Ne4 {[%clk 0:01:58]}  Rfd8 {[%clk 0:01:39]} 17. Qe3 {[%clk 0:01:45]}  Nbd5 {[%clk 0:01:38]} 18. Qd2 {[%clk 0:01:41]}  b6 {[%clk 0:01:19]} 19. Rc1 {[%clk 0:01:28]}  Qb4 {[%clk 0:00:58]} 20. a3 {[%clk 0:01:26]}  Qa4 {[%clk 0:00:44]} 21. Bc4 {[%clk 0:01:16]}  Ng2+ {[%clk 0:00:35]} 22. Kf1 {[%clk 0:01:16]}  Ngf4 {[%clk 0:00:35]} 23. Bxd5 {[%clk 0:01:14]}  Nxd5 {[%clk 0:00:30]} 24. Nf6+ {[%clk 0:01:14]}  Kf8 {[%clk 0:00:19]} 25. Nxd5 {[%clk 0:01:10]}  cxd5 {[%clk 0:00:20]} 26. g6 {[%clk 0:01:08]}  Bb5+ {[%clk 0:00:18]} 27. Kg2 {[%clk 0:01:07]}  fxg6 {[%clk 0:00:16]} 28. Ng5 {[%clk 0:01:04]}  Bd7 {[%clk 0:00:15]} 29. Rc7 {[%clk 0:01:00]}  Qb5 {[%clk 0:00:13]} 30. Qf4+ {[%clk 0:00:56]}  Kg8 {[%clk 0:00:13]} 31. Qf7+ {[%clk 0:00:56]}  Kh8 {[%clk 0:00:14]} 32. Qxg6 {[%clk 0:00:57]}  Kg8 {[%clk 0:00:07]} 33. Qf7+ {[%clk 0:00:54]}  Kh8 {[%clk 0:00:07]} 34. Qxh5+ {[%clk 0:00:54]}  Kg8 {[%clk 0:00:08]} 35. Qf7+ {[%clk 0:00:51]}  Kh8 {[%clk 0:00:08]} 36. Nxe6 {[%clk 0:00:49]} 1-0


[Site "https://www.chess.com"]

[Event "Titled Tuesday Blitz April 11 Late 2023"]
[White "Perez Rodriguez, Jennifer"]
[Black "Steenbekkers, Franck"]
[WhiteFideId "3507831"]
[BlackFideId "1004220"]
[WhiteElo "2116"]
[BlackElo "2164"]
[Result "1-0"]
[Round "07"]
[TimeControl "180+2"]
[Date "2023.04.11"]
[WhiteClock "0:01:11"]
[BlackClock "0:00:53"]

1. e4 {[%clk 0:02:57]}  c5 {[%clk 0:02:44]} 2. c3 {[%clk 0:02:55]}  Nf6 {[%clk 0:02:35]} 3. e5 {[%clk 0:02:52]}  Nd5 {[%clk 0:02:32]} 4. Nf3 {[%clk 0:02:52]}  d6 {[%clk 0:02:26]} 5. exd6 {[%clk 0:02:51]}  Qxd6 {[%clk 0:02:24]} 6. d4 {[%clk 0:02:51]}  cxd4 {[%clk 0:02:22]} 7. Nxd4 {[%clk 0:02:47]}  e6 {[%clk 0:02:20]} 8. Be2 {[%clk 0:02:43]}  Be7 {[%clk 0:02:18]} 9. Nb5 {[%clk 0:02:43]}  Qd8 {[%clk 0:02:16]} 10. c4 {[%clk 0:02:43]}  Nb4 {[%clk 0:02:08]} 11. Bf4 {[%clk 0:02:37]}  N8a6 {[%clk 0:01:59]} 12. N1c3 {[%clk 0:02:31]}  O-O {[%clk 0:01:55]} 13. O-O {[%clk 0:02:25]}  Bd7 {[%clk 0:01:54]} 14. a3 {[%clk 0:02:18]}  Nc6 {[%clk 0:01:52]} 15. b4 {[%clk 0:02:14]}  e5 {[%clk 0:01:46]} 16. Bg3 {[%clk 0:02:02]}  Bf5 {[%clk 0:01:19]} 17. Qxd8 {[%clk 0:01:53]}  Rfxd8 {[%clk 0:01:17]} 18. Rfd1 {[%clk 0:01:53]}  Bf6 {[%clk 0:01:11]} 19. Nd5 {[%clk 0:01:49]}  Bg5 {[%clk 0:01:07]} 20. Bf3 {[%clk 0:01:14]}  h5 {[%clk 0:01:01]} 21. Bxh5 {[%clk 0:01:12]}  Nab8 {[%clk 0:00:53]} 22. Nbc7 {[%clk 0:01:11]} 1-0


[Site "https://www.chess.com"]

[Event "Titled Tuesday Blitz April 11 Late 2023"]
[White "Minko, Dmitry"]
[Black "Rian, Kapriaga"]
[WhiteFideId "24188468"]
[BlackFideId "7103263"]
[WhiteElo "2147"]
[BlackElo "2089"]
[Result "1-0"]
[Round "07"]
[TimeControl "180+2"]
[Date "2023.04.11"]
[WhiteClock "0:00:06"]
[BlackClock "0:00:02"]

1. e4 {[%clk 0:02:54]}  c6 {[%clk 0:02:59]} 2. Nc3 {[%clk 0:02:52]}  d5 {[%clk 0:02:59]} 3. Nf3 {[%clk 0:02:53]}  dxe4 {[%clk 0:02:58]} 4. Nxe4 {[%clk 0:02:52]}  Nf6 {[%clk 0:02:57]} 5. Nxf6+ {[%clk 0:02:52]}  exf6 {[%clk 0:02:57]} 6. d4 {[%clk 0:02:49]}  Bd6 {[%clk 0:02:56]} 7. Bd3 {[%clk 0:02:49]}  O-O {[%clk 0:02:55]} 8. O-O {[%clk 0:02:49]}  Nd7 {[%clk 0:02:52]} 9. c3 {[%clk 0:02:44]}  Re8 {[%clk 0:02:51]} 10. Qc2 {[%clk 0:02:44]}  Nf8 {[%clk 0:02:50]} 11. h3 {[%clk 0:02:36]}  Be6 {[%clk 0:02:48]} 12. Bf5 {[%clk 0:02:32]}  Qd7 {[%clk 0:02:41]} 13. Bxe6 {[%clk 0:02:32]}  fxe6 {[%clk 0:02:37]} 14. Be3 {[%clk 0:02:33]}  Ng6 {[%clk 0:02:33]} 15. Rad1 {[%clk 0:02:32]}  Rad8 {[%clk 0:02:31]} 16. Nd2 {[%clk 0:02:26]}  a6 {[%clk 0:02:29]} 17. Rfe1 {[%clk 0:02:24]}  Qc7 {[%clk 0:02:28]} 18. Nc4 {[%clk 0:02:23]}  b5 {[%clk 0:02:24]} 19. Nxd6 {[%clk 0:02:22]}  Qxd6 {[%clk 0:02:23]} 20. Qe4 {[%clk 0:02:20]}  Qd5 {[%clk 0:02:22]} 21. Qb1 {[%clk 0:02:18]}  a5 {[%clk 0:02:11]} 22. f3 {[%clk 0:02:19]}  a4 {[%clk 0:02:10]} 23. b3 {[%clk 0:02:18]}  axb3 {[%clk 0:02:08]} 24. axb3 {[%clk 0:02:18]}  e5 {[%clk 0:01:58]} 25. dxe5 {[%clk 0:02:16]}  Qxe5 {[%clk 0:01:57]} 26. Rxd8 {[%clk 0:02:12]}  Rxd8 {[%clk 0:01:56]} 27. Bb6 {[%clk 0:02:04]}  Qg3 {[%clk 0:01:27]} 28. Bxd8 {[%clk 0:00:36]}  Nf4 {[%clk 0:01:26]} 29. Re8+ {[%clk 0:00:17]}  Kf7 {[%clk 0:01:25]} 30. Re7+ {[%clk 0:00:18]}  Kf8 {[%clk 0:01:25]} 31. Qc2 {[%clk 0:00:18]}  Nxh3+ {[%clk 0:01:21]} 32. Kf1 {[%clk 0:00:18]}  Qh2 {[%clk 0:01:20]} 33. Ke1 {[%clk 0:00:15]}  Qg3+ {[%clk 0:00:57]} 34. Kd1 {[%clk 0:00:13]}  Qh2 {[%clk 0:00:16]} 35. Qe2 {[%clk 0:00:06]}  Qd6+ {[%clk 0:00:13]} 36. Qd2 {[%clk 0:00:06]}  Qh2 {[%clk 0:00:06]} 37. Kc2 {[%clk 0:00:06]}  Nf4 {[%clk 0:00:04]} 38. Re4 {[%clk 0:00:05]}  Nd5 {[%clk 0:00:02]} 39. Bb6 {[%clk 0:00:05]}  Nxb6 {[%clk 0:00:02]} 40. Qd8+ {[%clk 0:00:06]}  Kf7 {[%clk 0:00:02]} 41. Qe8# {[%clk 0:00:06]} 1-0


[Site "https://www.chess.com"]

[Event "Titled Tuesday Blitz April 11 Late 2023"]
[White "Chemin, Justo Reinaldo"]
[Black "Garcia Cuenca, Victor"]
[WhiteFideId "2101580"]
[BlackFideId "2250829"]
[WhiteElo "1940"]
[BlackElo "2329"]
[Result "0-1"]
[Round "07"]
[TimeControl "180+2"]
[Date "2023.04.11"]
[WhiteClock "0:00:16"]
[BlackClock "0:00:57"]

1. e4 {[%clk 0:03:00]}  c6 {[%clk 0:02:57]} 2. d4 {[%clk 0:02:59]}  d5 {[%clk 0:02:57]} 3. Nc3 {[%clk 0:03:00]}  dxe4 {[%clk 0:02:56]} 4. Nxe4 {[%clk 0:03:01]}  Nd7 {[%clk 0:02:56]} 5. Nf3 {[%clk 0:02:59]}  Ngf6 {[%clk 0:02:56]} 6. Bd3 {[%clk 0:02:53]}  Nxe4 {[%clk 0:02:54]} 7. Bxe4 {[%clk 0:02:53]}  Nf6 {[%clk 0:02:55]} 8. Bd3 {[%clk 0:02:53]}  Bg4 {[%clk 0:02:55]} 9. c3 {[%clk 0:02:52]}  e6 {[%clk 0:02:54]} 10. O-O {[%clk 0:02:40]}  Be7 {[%clk 0:02:51]} 11. Re1 {[%clk 0:02:40]}  O-O {[%clk 0:02:51]} 12. h3 {[%clk 0:02:37]}  Bh5 {[%clk 0:02:48]} 13. g4 {[%clk 0:02:34]}  Bg6 {[%clk 0:02:46]} 14. Bxg6 {[%clk 0:02:32]}  hxg6 {[%clk 0:02:47]} 15. Qe2 {[%clk 0:02:29]}  Qc7 {[%clk 0:02:42]} 16. Ne5 {[%clk 0:02:21]}  Nd5 {[%clk 0:02:40]} 17. f4 {[%clk 0:02:18]}  Bh4 {[%clk 0:02:27]} 18. Rf1 {[%clk 0:02:17]}  Bf6 {[%clk 0:02:28]} 19. f5 {[%clk 0:02:07]}  exf5 {[%clk 0:02:21]} 20. gxf5 {[%clk 0:02:07]}  Bxe5 {[%clk 0:02:19]} 21. dxe5 {[%clk 0:02:05]}  Rae8 {[%clk 0:02:16]} 22. fxg6 {[%clk 0:01:59]}  Rxe5 {[%clk 0:02:12]} 23. Qg4 {[%clk 0:01:44]}  fxg6 {[%clk 0:01:54]} 24. Rxf8+ {[%clk 0:01:43]}  Kxf8 {[%clk 0:01:55]} 25. Bd2 {[%clk 0:01:25]}  Kf7 {[%clk 0:01:45]} 26. Rf1+ {[%clk 0:01:23]}  Nf6 {[%clk 0:01:46]} 27. Bf4 {[%clk 0:01:12]}  Qb6+ {[%clk 0:01:44]} 28. Kg2 {[%clk 0:01:00]}  Qxb2+ {[%clk 0:01:14]} 29. Kh1 {[%clk 0:00:52]}  Nxg4 {[%clk 0:01:07]} 30. Bxe5+ {[%clk 0:00:33]}  Nf2+ {[%clk 0:01:07]} 31. Kg2 {[%clk 0:00:31]}  Ke6 {[%clk 0:01:08]} 32. Rxf2 {[%clk 0:00:27]}  Qxf2+ {[%clk 0:01:01]} 33. Kxf2 {[%clk 0:00:27]}  Kxe5 {[%clk 0:01:02]} 34. Ke3 {[%clk 0:00:25]}  b5 {[%clk 0:01:00]} 35. h4 {[%clk 0:00:23]}  c5 {[%clk 0:01:00]} 36. a3 {[%clk 0:00:21]}  a5 {[%clk 0:01:00]} 37. Kf3 {[%clk 0:00:20]}  b4 {[%clk 0:00:59]} 38. cxb4 {[%clk 0:00:19]}  cxb4 {[%clk 0:01:00]} 39. axb4 {[%clk 0:00:16]}  a4 {[%clk 0:00:57]} 0-1


[Site "https://www.chess.com"]

[Event "Titled Tuesday Blitz April 11 Late 2023"]
[White "Sailer, Mike"]
[Black "Bulgurlu, Okan"]
[WhiteFideId "2012901"]
[BlackFideId "6352316"]
[WhiteElo "2109"]
[BlackElo "1908"]
[Result "1-0"]
[Round "07"]
[TimeControl "180+2"]
[Date "2023.04.11"]
[WhiteClock "0:00:05"]
[BlackClock "0:00:12"]

1. d4 {[%clk 0:03:00]}  d5 {[%clk 0:02:59]} 2. Bg5 {[%clk 0:02:59]}  h6 {[%clk 0:02:59]} 3. Bh4 {[%clk 0:03:00]}  c5 {[%clk 0:02:59]} 4. dxc5 {[%clk 0:02:56]}  g5 {[%clk 0:02:56]} 5. Bg3 {[%clk 0:02:55]}  Bg7 {[%clk 0:02:56]} 6. c3 {[%clk 0:02:54]}  e5 {[%clk 0:02:52]} 7. Nd2 {[%clk 0:02:53]}  Nc6 {[%clk 0:02:51]} 8. e4 {[%clk 0:02:40]}  Be6 {[%clk 0:02:50]} 9. Bb5 {[%clk 0:02:39]}  Rc8 {[%clk 0:02:48]} 10. Qa4 {[%clk 0:02:35]}  a6 {[%clk 0:02:41]} 11. Bxc6+ {[%clk 0:02:34]}  Rxc6 {[%clk 0:02:41]} 12. b4 {[%clk 0:02:32]}  Ne7 {[%clk 0:02:31]} 13. Ne2 {[%clk 0:02:31]}  O-O {[%clk 0:02:23]} 14. O-O {[%clk 0:02:31]}  dxe4 {[%clk 0:02:22]} 15. Nxe4 {[%clk 0:02:31]}  f5 {[%clk 0:02:22]} 16. Nd6 {[%clk 0:02:26]}  f4 {[%clk 0:02:20]} 17. Nxb7 {[%clk 0:02:24]}  Qd7 {[%clk 0:02:04]} 18. Na5 {[%clk 0:02:18]}  Rc7 {[%clk 0:02:04]} 19. Qxd7 {[%clk 0:02:10]}  Bxd7 {[%clk 0:02:04]} 20. Rfd1 {[%clk 0:02:04]}  fxg3 {[%clk 0:02:02]} 21. Nxg3 {[%clk 0:02:03]}  Ba4 {[%clk 0:01:58]} 22. Rd6 {[%clk 0:01:58]}  Nf5 {[%clk 0:01:52]} 23. Nxf5 {[%clk 0:01:47]}  Rxf5 {[%clk 0:01:53]} 24. Rxa6 {[%clk 0:01:45]}  Rcf7 {[%clk 0:01:50]} 25. Nb7 {[%clk 0:01:27]}  Rxf2 {[%clk 0:01:46]} 26. Nd6 {[%clk 0:01:17]}  Bc2 {[%clk 0:01:09]} 27. Nxf7 {[%clk 0:01:13]}  Rxf7 {[%clk 0:01:10]} 28. Rf1 {[%clk 0:01:07]}  Rxf1+ {[%clk 0:01:09]} 29. Kxf1 {[%clk 0:01:07]}  Bd3+ {[%clk 0:01:10]} 30. Kf2 {[%clk 0:01:04]}  Bxa6 {[%clk 0:01:11]} 31. a4 {[%clk 0:01:05]}  Bf8 {[%clk 0:01:00]} 32. Ke3 {[%clk 0:01:03]}  Kf7 {[%clk 0:00:59]} 33. Ke4 {[%clk 0:01:03]}  Ke6 {[%clk 0:00:59]} 34. b5 {[%clk 0:01:04]}  Bxc5 {[%clk 0:00:32]} 35. bxa6 {[%clk 0:01:04]}  h5 {[%clk 0:00:31]} 36. h3 {[%clk 0:01:02]}  Bf2 {[%clk 0:00:30]} 37. g4 {[%clk 0:00:57]}  h4 {[%clk 0:00:28]} 38. Kf3 {[%clk 0:00:54]}  Ba7 {[%clk 0:00:25]} 39. Ke4 {[%clk 0:00:54]}  Bb6 {[%clk 0:00:25]} 40. c4 {[%clk 0:00:51]}  Bc5 {[%clk 0:00:25]} 41. Kd3 {[%clk 0:00:47]}  Ba7 {[%clk 0:00:22]} 42. Ke4 {[%clk 0:00:47]}  Bb6 {[%clk 0:00:15]} 43. Kd3 {[%clk 0:00:47]}  Kd6 {[%clk 0:00:14]} 44. Ke4 {[%clk 0:00:47]}  Ba7 {[%clk 0:00:13]} 45. Kf5 {[%clk 0:00:38]}  Be3 {[%clk 0:00:03]} 46. a7 {[%clk 0:00:35]}  Bxa7 {[%clk 0:00:03]} 47. Kxg5 {[%clk 0:00:36]}  e4 {[%clk 0:00:03]} 48. Kf4 {[%clk 0:00:28]}  e3 {[%clk 0:00:02]} 49. Kf3 {[%clk 0:00:24]}  Ke5 {[%clk 0:00:01]} 50. a5 {[%clk 0:00:18]}  Bc5 {[%clk 0:00:01]} 51. a6 {[%clk 0:00:12]}  Ba7 {[%clk 0:00:02]} 52. Ke2 {[%clk 0:00:10]}  Kf4 {[%clk 0:00:02]} 53. Ke1 {[%clk 0:00:08]}  Kf3 {[%clk 0:00:02]} 54. g5 {[%clk 0:00:08]}  Kg3 {[%clk 0:00:01]} 55. g6 {[%clk 0:00:07]}  Kf3 {[%clk 0:00:01]} 56. g7 {[%clk 0:00:07]}  Bd4 {[%clk 0:00:01]} 57. g8=Q {[%clk 0:00:07]}  Bc3+ {[%clk 0:00:01]} 58. Kd1 {[%clk 0:00:06]}  e2+ {[%clk 0:00:02]} 59. Kc2 {[%clk 0:00:07]}  e1=Q {[%clk 0:00:03]} 60. Qf7+ {[%clk 0:00:07]}  Kg2 {[%clk 0:00:03]} 61. Qg6+ {[%clk 0:00:06]}  Kh2 {[%clk 0:00:03]} 62. Qd6+ {[%clk 0:00:04]}  Be5 {[%clk 0:00:04]} 63. Qd2+ {[%clk 0:00:04]}  Qxd2+ {[%clk 0:00:04]} 64. Kxd2 {[%clk 0:00:04]}  Bd4 {[%clk 0:00:05]} 65. Ke2 {[%clk 0:00:03]}  Kxh3 {[%clk 0:00:04]} 66. Kf3 {[%clk 0:00:02]}  Kh2 {[%clk 0:00:04]} 67. Ke4 {[%clk 0:00:01]}  h3 {[%clk 0:00:04]} 68. Kxd4 {[%clk 0:00:01]}  Kg1 {[%clk 0:00:04]} 69. a7 {[%clk 0:00:01]}  h2 {[%clk 0:00:05]} 70. a8=Q {[%clk 0:00:00]}  h1=Q {[%clk 0:00:05]} 71. Qxh1+ {[%clk 0:00:01]}  Kxh1 {[%clk 0:00:06]} 72. c5 {[%clk 0:00:01]}  Kg2 {[%clk 0:00:07]} 73. c6 {[%clk 0:00:02]}  Kf3 {[%clk 0:00:08]} 74. c7 {[%clk 0:00:03]}  Kg4 {[%clk 0:00:09]} 75. c8=Q+ {[%clk 0:00:04]}  Kg3 {[%clk 0:00:10]} 76. Qc6 {[%clk 0:00:05]}  Kf4 {[%clk 0:00:11]} 77. Qe6 {[%clk 0:00:04]}  Kf3 {[%clk 0:00:12]} 78. Qe5 {[%clk 0:00:05]} 1-0


[Site "https://www.chess.com"]

[Event "Titled Tuesday Blitz April 11 Late 2023"]
[White "Kostiukov, Alexandr"]
[Black "Michalski, Olaf"]
[WhiteFideId "14108100"]
[BlackFideId "1106740"]
[WhiteElo "2202"]
[BlackElo "2173"]
[Result "1-0"]
[Round "07"]
[TimeControl "180+2"]
[Date "2023.04.11"]
[WhiteClock "0:01:07"]
[BlackClock "0:00:05"]

1. g3 {[%clk 0:02:59]}  d6 {[%clk 0:02:59]} 2. Bg2 {[%clk 0:02:59]}  e5 {[%clk 0:02:59]} 3. c4 {[%clk 0:03:00]}  f5 {[%clk 0:02:59]} 4. Nc3 {[%clk 0:03:01]}  Nf6 {[%clk 0:02:59]} 5. e3 {[%clk 0:03:01]}  Be7 {[%clk 0:02:59]} 6. Nge2 {[%clk 0:03:02]}  O-O {[%clk 0:03:00]} 7. O-O {[%clk 0:03:02]}  Qe8 {[%clk 0:03:00]} 8. b3 {[%clk 0:03:02]}  Qh5 {[%clk 0:02:59]} 9. d4 {[%clk 0:02:58]}  c6 {[%clk 0:02:53]} 10. Ba3 {[%clk 0:02:52]}  e4 {[%clk 0:02:25]} 11. Nf4 {[%clk 0:02:46]}  Qh6 {[%clk 0:02:25]} 12. h4 {[%clk 0:02:46]}  g5 {[%clk 0:02:09]} 13. hxg5 {[%clk 0:02:44]}  Qxg5 {[%clk 0:02:09]} 14. Nce2 {[%clk 0:02:26]}  h5 {[%clk 0:01:38]} 15. Nh3 {[%clk 0:02:20]}  Qh6 {[%clk 0:01:38]} 16. Nef4 {[%clk 0:02:20]}  Ng4 {[%clk 0:01:38]} 17. d5 {[%clk 0:02:09]}  c5 {[%clk 0:01:33]} 18. Bb2 {[%clk 0:02:05]}  h4 {[%clk 0:00:52]} 19. Qd2 {[%clk 0:02:05]}  hxg3 {[%clk 0:00:47]} 20. fxg3 {[%clk 0:02:05]}  Bf6 {[%clk 0:00:42]} 21. b4 {[%clk 0:01:52]}  b6 {[%clk 0:00:27]} 22. Rae1 {[%clk 0:01:51]}  Na6 {[%clk 0:00:25]} 23. Bxf6 {[%clk 0:01:49]}  Rxf6 {[%clk 0:00:22]} 24. b5 {[%clk 0:01:44]}  Nc7 {[%clk 0:00:19]} 25. a4 {[%clk 0:01:36]}  a5 {[%clk 0:00:16]} 26. bxa6 {[%clk 0:01:14]}  Nxa6 {[%clk 0:00:11]} 27. a5 {[%clk 0:01:09]}  Nb4 {[%clk 0:00:08]} 28. axb6 {[%clk 0:01:09]}  Ra2 {[%clk 0:00:05]} 29. Qc3 {[%clk 0:01:07]} 1-0


[Site "https://www.chess.com"]

[Event "Titled Tuesday Blitz April 11 Late 2023"]
[White "Souza Santos, Carlos Roberto"]
[Black "Svicevic, Rastko"]
[WhiteFideId "2150603"]
[BlackFideId "916315"]
[WhiteElo "2064"]
[BlackElo "2071"]
[Result "1-0"]
[Round "07"]
[TimeControl "180+2"]
[Date "2023.04.11"]
[WhiteClock "0:02:33"]
[BlackClock "0:01:32"]

1. d4 {[%clk 0:03:00]}  d5 {[%clk 0:02:48]} 2. Bf4 {[%clk 0:02:58]}  e6 {[%clk 0:02:49]} 3. e3 {[%clk 0:02:57]}  c6 {[%clk 0:02:50]} 4. c3 {[%clk 0:02:57]}  Bd6 {[%clk 0:02:51]} 5. Bg3 {[%clk 0:02:57]}  Ne7 {[%clk 0:02:52]} 6. Nd2 {[%clk 0:02:57]}  Nf5 {[%clk 0:02:52]} 7. Bd3 {[%clk 0:02:57]}  Nxg3 {[%clk 0:02:51]} 8. hxg3 {[%clk 0:02:58]}  Nd7 {[%clk 0:02:50]} 9. f4 {[%clk 0:02:57]}  f5 {[%clk 0:02:47]} 10. Ngf3 {[%clk 0:02:55]}  Nf6 {[%clk 0:02:44]} 11. Ne5 {[%clk 0:02:53]}  Bxe5 {[%clk 0:02:20]} 12. dxe5 {[%clk 0:02:54]}  Ne4 {[%clk 0:02:20]} 13. Nxe4 {[%clk 0:02:50]}  dxe4 {[%clk 0:02:19]} 14. Bc4 {[%clk 0:02:48]}  Qe7 {[%clk 0:02:15]} 15. Qd2 {[%clk 0:02:36]}  O-O {[%clk 0:02:07]} 16. O-O-O {[%clk 0:02:36]}  b5 {[%clk 0:02:06]} 17. Bb3 {[%clk 0:02:35]}  a5 {[%clk 0:02:05]} 18. Qd6 {[%clk 0:02:35]}  Qxd6 {[%clk 0:01:34]} 19. Rxd6 {[%clk 0:02:34]}  a4 {[%clk 0:01:32]} 20. Bxe6+ {[%clk 0:02:33]} 1-0


[Site "https://www.chess.com"]

[Event "Titled Tuesday Blitz April 11 Late 2023"]
[White "Sanchez, Robert"]
[Black "Marin Masis, Jose Esteban"]
[WhiteFideId "2034360"]
[BlackFideId "6508146"]
[WhiteElo "1966"]
[BlackElo "1838"]
[Result "0-1"]
[Round "07"]
[TimeControl "180+2"]
[Date "2023.04.11"]
[WhiteClock "0:01:25"]
[BlackClock "0:00:17"]

1. e4 {[%clk 0:03:00]}  c5 {[%clk 0:02:37]} 2. Nf3 {[%clk 0:02:57]}  Nc6 {[%clk 0:02:36]} 3. d4 {[%clk 0:02:57]}  cxd4 {[%clk 0:02:34]} 4. Nxd4 {[%clk 0:02:58]}  e5 {[%clk 0:02:32]} 5. Nb5 {[%clk 0:02:58]}  d6 {[%clk 0:02:32]} 6. N1c3 {[%clk 0:02:58]}  a6 {[%clk 0:02:31]} 7. Na3 {[%clk 0:02:58]}  Nf6 {[%clk 0:02:28]} 8. Bg5 {[%clk 0:02:57]}  Be7 {[%clk 0:02:27]} 9. Bxf6 {[%clk 0:02:57]}  Bxf6 {[%clk 0:02:24]} 10. Nd5 {[%clk 0:02:58]}  Bg5 {[%clk 0:02:24]} 11. Be2 {[%clk 0:02:57]}  O-O {[%clk 0:02:23]} 12. O-O {[%clk 0:02:58]}  f5 {[%clk 0:02:17]} 13. Bf3 {[%clk 0:02:55]}  Nd4 {[%clk 0:02:08]} 14. c3 {[%clk 0:02:55]}  Nxf3+ {[%clk 0:01:58]} 15. Qxf3 {[%clk 0:02:54]}  Be6 {[%clk 0:01:56]} 16. Rfd1 {[%clk 0:02:30]}  Rc8 {[%clk 0:01:30]} 17. Qd3 {[%clk 0:02:12]}  fxe4 {[%clk 0:01:09]} 18. Qxe4 {[%clk 0:02:10]}  Bf5 {[%clk 0:01:08]} 19. Qb4 {[%clk 0:02:03]}  b5 {[%clk 0:00:55]} 20. Ne3 {[%clk 0:01:56]}  Bxe3 {[%clk 0:00:28]} 21. fxe3 {[%clk 0:01:57]}  Qb6 {[%clk 0:00:28]} 22. Rxd6 {[%clk 0:01:52]}  Qxe3+ {[%clk 0:00:27]} 23. Kh1 {[%clk 0:01:52]}  Be4 {[%clk 0:00:22]} 24. Rg1 {[%clk 0:01:27]}  Bxg2+ {[%clk 0:00:16]} 25. Rxg2 {[%clk 0:01:25]}  Rf1+ {[%clk 0:00:17]} 26. Rg1 {[%clk 0:01:25]}  Qf3# {[%clk 0:00:17]} 0-1


[Site "https://www.chess.com"]